fUST/lending_fUST_20240413
["ID","MTS","AMOUNT","RATE_DAILY","PERIOD"]
[322321041,1712951459999,-2860.19,0.00066301,21]
[322321042,1712951460008,-500.0,0.00066301,120]
[322321043,1712951460018,-1621.18,0.00066301,120]
[322321044,1712951460027,-500.0,0.00066301,120]
[322321045,1712951460037,-500.0,0.00066301,120]
[322321046,1712951460046,-3998.1,0.00066301,120]
[322321047,1712951460056,-1384.49,0.00066301,120]
[322321048,1712951460066,-1760.0,0.00066301,120]
[322321049,1712951460076,-170.81,0.00066301,120]
[322321050,1712951460085,-500.0,0.00066301,120]
[322321051,1712951460095,-1256.8,0.00066301,120]
[322321052,1712951460105,-527.54,0.00066301,120]
[322321053,1712951460116,-2181.57,0.00066301,120]
[322321054,1712951460125,-397.7424633,0.00066301,120]
[322321055,1712951460134,-285.20510678,0.000669,120]
[322321056,1712951460143,-222.909598,0.00067772,2]
[322321057,1712951460152,-586.0,0.000678,30]
[322321058,1712951460161,-213.393891,0.00068,120]
[322321059,1712951460171,-10000.0,0.00068,120]
[322321060,1712951460180,-410.0,0.00068,120]
[322321061,1712951460189,-410.0,0.00068,120]
[322321062,1712951460198,-166.668538,0.00068,120]
[322321063,1712951460207,-166.668538,0.00068,120]
[322321064,1712951460217,-235.0,0.00068,120]
[322321065,1712951460226,-500.0,0.00068219,120]
[322321066,1712951460235,-500.0,0.00068219,120]
[322321067,1712951460244,-500.0,0.00068219,120]
[322321068,1712951460254,-200.679281,0.00068219,120]
[322321069,1712951460263,-734.55,0.00068219,120]
[322321070,1712951460273,-500.0,0.00068219,120]
[322321071,1712951460282,-888.76,0.00068219,120]
[322321072,1712951460291,-500.0,0.00068219,120]
[322321073,1712951460301,-500.0,0.00068219,120]
[322321074,1712951460310,-500.0,0.00068219,120]
[322321075,1712951460319,-500.0,0.00068219,120]
[322321076,1712951460328,-762.13,0.00068219,120]
[322321077,1712951460338,-1807.37,0.00068219,60]
[322321078,1712951460347,-500.0,0.00068219,120]
[322321079,1712951460357,-500.0,0.00068219,120]
[322321080,1712951460370,-834.11,0.00068219,120]
[322321081,1712951460381,-1212.39,0.00068219,120]
[322321082,1712951460391,-500.0,0.00068219,120]
[322321083,1712951460401,-500.0,0.00068219,120]
[322321084,1712951460410,-164.441677,0.00068219,120]
[322321085,1712951460420,-164.441677,0.00068219,120]
[322321086,1712951460428,-742.69,0.00068219,120]
[322321087,1712951460437,-500.0,0.00068219,120]
[322321088,1712951460446,-1356.1,0.00068219,120]
[322321089,1712951460456,-831.74,0.00068219,120]
[322321090,1712951460465,-500.0,0.00068219,120]
[322321091,1712951460475,-3749.95,0.00068219,120]
[322321092,1712951460484,-500.0,0.00068219,120]
[322321093,1712951460493,-2721.92,0.00068219,120]
[322321094,1712951460503,-758.16753,0.00068219,120]
[322321095,1712951460513,-500.0,0.00068219,120]
[322321096,1712951460523,-503.87,0.00068219,120]
[322321097,1712951460622,-758.16753,0.00068219,120]
[322321098,1712951460633,-936.62,0.00068219,120]
[322321099,1712951460642,-870.38,0.00068219,120]
[322321100,1712951460652,-500.0,0.00068219,120]
[322321101,1712951460662,-158.672482,0.00068219,120]
[322321102,1712951460671,-158.672482,0.00068219,120]
[322321103,1712951460681,-3029.72,0.00068219,120]
[322321104,1712951460690,-500.0,0.00068219,120]
[322321105,1712951460699,-163.08535657,0.00068219,60]
[322321106,1712951460709,-902.5,0.00068219,120]
[322321107,1712951460720,-2508.37,0.00068219,120]
[322321108,1712951460729,-158.717053,0.00068219,120]
[322321109,1712951460739,-800.65,0.00068219,120]
[322321110,1712951460748,-1242.51,0.00068219,120]
[322321111,1712951460758,-1165.32,0.00068219,120]
[322321112,1712951460767,-500.0,0.00068219,120]
[322321113,1712951460777,-2000.4,0.00068219,120]
[322321114,1712951460786,-500.0,0.00068219,120]
[322321115,1712951460796,-1286.56,0.00068219,120]
[322321116,1712951460805,-500.0,0.00068219,120]
[322321117,1712951460814,-844.43,0.00068219,120]
[322321118,1712951460823,-1267.5,0.00068219,120]
[322321119,1712951460835,-500.0,0.00068219,120]
[322321120,1712951460844,-241.51208832,0.00068219,120]
[322321121,1712951460853,-828.94,0.00068219,120]
[322321122,1712951460864,-857.33,0.00068219,120]
[322321123,1712951460873,-500.0,0.00068219,120]
[322321124,1712951460882,-500.0,0.00068219,120]
[322321125,1712951460891,-500.0,0.00068219,120]
[322321126,1712951460901,-500.0,0.00068219,120]
[322321127,1712951460910,-248.35466,0.00068219,14]
[322321128,1712951460921,-500.0,0.00068219,120]
[322321129,1712951460930,-248.35466,0.00068219,14]
[322321130,1712951460940,-37087.71,0.00068219,120]
[322321131,1712951460949,-1034.24,0.00068219,120]
[322321132,1712951460958,-500.0,0.00068219,120]
[322321133,1712951460968,-11023.14,0.00068219,120]
[322321134,1712951460977,-1092.24,0.00068219,120]
[322321135,1712951460986,-2860.19,0.00068219,21]
[322321136,1712951460996,-230.064055,0.00068219,120]
[322321137,1712951461005,-230.064055,0.00068219,120]
[322321138,1712951461015,-500.0,0.00068219,120]
[322321139,1712951461025,-1621.18,0.00068219,120]
[322321140,1712951461036,-500.0,0.00068219,120]
[322321141,1712951461045,-3998.1,0.00068219,120]
[322321142,1712951461055,-1384.49,0.00068219,120]
[322321143,1712951461064,-1760.0,0.00068219,120]
[322321144,1712951461074,-623.16563812,0.00068219,120]
[322321145,1712951461083,-1256.8,0.00068219,120]
[322321146,1712951461093,-527.54,0.00068219,120]
[322321147,1712951461103,-2181.57,0.00068219,120]
[322321148,1712951461115,-1407.47707785,0.00068493,120]
[322321149,1712951461125,-500.0,0.00068493,120]
[322321150,1712951461134,-500.0,0.00068493,120]
[322321151,1712951461143,-500.0,0.00068493,120]
[322321152,1712951461153,-500.0,0.00068493,120]
[322321153,1712951461163,-532.90288554,0.00068493,120]
[322321154,1712951461172,-164.058895,0.00068493,2]
[322321155,1712951461182,-151.0,0.00068493,30]
[322321156,1712951461191,-151.937805,0.00068493,30]
[322321157,1712951461200,-235.0,0.00068767,120]
[322321158,1712951461210,-1000.0,0.00068887,120]
[322321159,1712951461219,-154.8915759,0.00069,7]
[322321160,1712951461231,-20000.0,0.000695,120]
[322321161,1712951461243,-905.0,0.00069764,120]
[322321162,1712951461253,-154.44574458,0.00069974,120]
[322321163,1712951461263,-869.75602036,0.0007,60]
[322321164,1712951461272,-428.03974001,0.00070136,120]
[322321165,1712951461282,-500.0,0.00070136,120]
[322321166,1712951461292,-500.0,0.00070136,120]
[322321167,1712951461302,-734.55,0.00070136,120]
[322321168,1712951461313,-500.0,0.00070136,120]
[322321169,1712951461323,-888.76,0.00070136,120]
[322321170,1712951461332,-500.0,0.00070136,120]
[322321171,1712951461341,-162.1,0.00070136,120]
[322321172,1712951461350,-500.0,0.00070136,120]
[322321173,1712951461360,-500.0,0.00070136,120]
[322321174,1712951461373,-762.13,0.00070136,120]
[322321175,1712951461382,-1807.37,0.00070136,60]
[322321176,1712951461391,-500.0,0.00070136,120]
[322321177,1712951461401,-500.0,0.00070136,120]
[322321178,1712951461410,-834.11,0.00070136,120]
[322321179,1712951461420,-1212.39,0.00070136,120]
[322321180,1712951461429,-500.0,0.00070136,120]
[322321181,1712951461438,-500.0,0.00070136,120]
[322321182,1712951461448,-742.69,0.00070136,120]
[322321183,1712951461457,-436.44390379,0.00070136,120]
[322321184,1712951461467,-1356.1,0.00070136,120]
[322321185,1712951461476,-831.74,0.00070136,120]
[322321186,1712951461486,-500.0,0.00070136,120]
[322321187,1712951461495,-3749.95,0.00070136,120]
[322321188,1712951461504,-500.0,0.00070136,120]
[322321189,1712951461514,-2721.92,0.00070136,120]
[322321190,1712951461524,-500.0,0.00070136,120]
[322321191,1712951461534,-503.87,0.00070136,120]
[322321192,1712951461543,-936.62,0.00070136,120]
[322321193,1712951461552,-870.38,0.00070136,120]
[322321194,1712951461562,-500.0,0.00070136,120]
[322321195,1712951461571,-3029.72,0.00070136,120]
[322321196,1712951461581,-500.0,0.00070136,120]
[322321197,1712951461590,-902.5,0.00070136,120]
[322321198,1712951461599,-2508.37,0.00070136,120]
[322321199,1712951461608,-800.65,0.00070136,120]
[322321200,1712951461623,-1242.51,0.00070136,120]
[322321201,1712951461633,-1165.32,0.00070136,120]
[322321202,1712951461643,-500.0,0.00070136,120]
[322321203,1712951461653,-2000.4,0.00070136,120]
[322321204,1712951461663,-500.0,0.00070136,120]
[322321205,1712951461672,-1286.56,0.00070136,120]
[322321206,1712951461681,-500.0,0.00070136,120]
[322321207,1712951461690,-844.43,0.00070136,120]
[322321208,1712951461700,-1267.5,0.00070136,120]
[322321209,1712951461709,-500.0,0.00070136,120]
[322321210,1712951461718,-828.94,0.00070136,120]
[322321211,1712951461727,-857.33,0.00070136,120]
[322321212,1712951461737,-500.0,0.00070136,120]
[322321213,1712951461747,-500.0,0.00070136,120]
[322321214,1712951461757,-500.0,0.00070136,120]
[322321215,1712951461766,-500.0,0.00070136,120]
[322321216,1712951461776,-500.0,0.00070136,120]
[322321217,1712951461785,-37087.71,0.00070136,120]
[322321218,1712951461795,-1034.24,0.00070136,120]
[322321219,1712951461804,-500.0,0.00070136,120]
[322321220,1712951461814,-11023.14,0.00070136,120]
[322321221,1712951461823,-1092.24,0.00070136,120]
[322321222,1712951461835,-2860.19,0.00070136,21]
[322321223,1712951461845,-500.0,0.00070136,120]
[322321224,1712951461857,-1621.18,0.00070136,120]
[322321225,1712951461869,-500.0,0.00070136,120]
[322321226,1712951461881,-3998.1,0.00070136,120]
[322321227,1712951461892,-1384.49,0.00070136,120]
[322321228,1712951461902,-1760.0,0.00070136,120]
[322321229,1712951461912,-1256.8,0.00070136,120]
[322321230,1712951461922,-527.54,0.00070136,120]
[322321231,1712951461932,-2181.57,0.00070136,120]
[322321232,1712951461941,-150.0,0.00070499,120]
[322321233,1712951461950,-166.717937,0.00071233,120]
[322321234,1712951461959,-160.410651,0.00071233,120]
[322321235,1712951461969,-158.159023,0.00071233,120]
[322321236,1712951461978,-8856.645403,0.000715,120]
[322321237,1712951462600,1105.82611526,0.000255,4]
[322321288,1712951683400,301.999999,0.00023,2]
[322321289,1712951701060,2300.86629097,0.000255,4]
[322321290,1712951727068,2299.79186063,0.000255,4]
[322321295,1712951860966,223.644375,0.00023987,2]
[322321296,1712951915921,29862.0084897,0.00023507,2]
[322321297,1712951923928,250.0,0.00023439,2]
[322321298,1712951931923,5652.33216208,0.00023507,2]
[322321299,1712951948517,766.24366167,0.00024101,5]
[322321300,1712951951930,22124.36563054,0.00023507,2]
[322321301,1712951960440,2495.883819,0.00023105,2]
[322321303,1712952056695,175.679073,0.00027397,120]
[322321305,1712952137696,568.7849943,0.00023265,2]
[322321308,1712952185208,1065.00827672,0.000274,6]
[322321309,1712952198341,24900.0,0.00023073,2]
[322321310,1712952237709,1202.48414365,0.00023966,2]
[322321311,1712952277056,2461.6221801,0.00023061,2]
[322321313,1712952318167,176.35521,0.0002278,2]
[322321314,1712952355651,671.080939,0.0002305,2]
[322321315,1712952377568,1610.18742931,0.00021407,2]
[322321316,1712952413857,2673.39972862,0.00023944,2]
[322321317,1712952452147,576.43392856,0.00023944,5]
[322321318,1712952519279,1248.21128792,0.00023925,2]
[322321319,1712952528003,6740.88198417,0.00023465,2]
[322321320,1712952538773,5348.0630336,0.00023021,2]
[322321321,1712952539067,203.06687544,0.0002392,6]
[322321371,1712952632085,-2617.48779907,0.00024001,2]
[322321372,1712952635758,1308.46081651,0.00024,2]
[322321373,1712952636448,154.93802479,0.00024,2]
[322321407,1712952637956,-1120.7898143,0.00024001,2]
[322321408,1712952637966,-154.95351395,0.00024001,2]
[322321409,1712952637975,-154.93802479,0.00024001,2]
[322321410,1712952637984,-1486.82464434,0.00024001,2]
[322321411,1712952637994,-242.92908465,0.00024001,2]
[322321412,1712952638007,-154.93802479,0.00024001,2]
[322321413,1712952638016,-518.66999202,0.00024002,2]
[322321414,1712952638025,-282.52694059,0.00024002,2]
[322321415,1712952638035,-874.98344823,0.00024002,2]
[322321416,1712952638044,-1381.0509475,0.00024002,2]
[322321422,1712952638606,-584.34809718,0.00024002,2]
[322321423,1712952638624,-407.97119397,0.00024002,2]
[322321424,1712952638634,-207.39373908,0.00024002,2]
[322321425,1712952638644,-154.95351395,0.00024003,2]
[322321426,1712952638654,-154.95351395,0.00024003,2]
[322321427,1712952638663,-1087.97739489,0.00024003,2]
[322321428,1712952638673,-175.4945599,0.00024003,2]
[322321440,1712952639265,-1756.41115898,0.00024003,2]
[322321441,1712952639275,-1494.36779976,0.00024003,2]
[322321442,1712952639286,-2446.79261773,0.00024003,2]
[322321444,1712952639301,-467.23792428,0.00024004,2]
[322321446,1712952639311,-181.18098361,0.00024004,2]
[322321448,1712952639321,-154.95351395,0.00024004,2]
[322321451,1712952639330,-473.53133438,0.00024004,2]
[322321454,1712952639339,-361.13014743,0.00024004,2]
[322321455,1712952639348,-875.47790871,0.00024004,2]
[322321456,1712952639357,-154.95351395,0.00024004,2]
[322321457,1712952639367,-300.0,0.00024005,2]
[322321458,1712952639377,-300.0,0.00024005,2]
[322321459,1712952639386,-277.24658734,0.00024006,2]
[322321460,1712952639395,-185.73445743,0.00024006,2]
[322321461,1712952639405,-2122.71055525,0.00024006,2]
[322321462,1712952639414,-2094.57281327,0.00024006,2]
[322321463,1712952639424,-225.63849083,0.00024006,2]
[322321464,1712952639434,-188.75485878,0.00024006,2]
[322321465,1712952639443,-5301.47067529,0.00024006,2]
[322321466,1712952639453,-154.95351395,0.00024006,2]
[322321467,1712952639462,-326.62746288,0.00024006,2]
[322321468,1712952639471,-154.95351395,0.00024006,2]
[322321469,1712952639481,-538.59791891,0.00024007,2]
[322321471,1712952639491,-260.52844265,0.00024007,2]
[322321473,1712952639502,-154.95351395,0.00024007,2]
[322321475,1712952639511,-470.34138776,0.00024007,2]
[322321477,1712952639520,-154.95351395,0.00024007,2]
[322321479,1712952639528,-154.95351395,0.00024007,2]
[322321481,1712952639538,-154.95351395,0.00024007,2]
[322321482,1712952639547,-154.95351395,0.00024007,2]
[322321483,1712952639557,-549.11981524,0.00024007,2]
[322321484,1712952639566,-500.0,0.00024007,2]
[322321485,1712952639575,-500.0,0.00024007,2]
[322321486,1712952639584,-527.9032534,0.00024007,2]
[322321488,1712952639593,-154.95351395,0.00024008,2]
[322321489,1712952639603,-154.95351395,0.00024008,2]
[322321490,1712952639613,-156.67063917,0.00024008,2]
[322321491,1712952639622,-154.95351395,0.00024008,2]
[322321492,1712952639631,-687.6463722,0.00024008,2]
[322321493,1712952639641,-1043.5168995,0.00024008,2]
[322321494,1712952639650,-59022.10944715,0.00024008,2]
[322321495,1712952639659,-5570.46935089,0.00024008,2]
[322321496,1712952639669,-2937.70369238,0.00024008,2]
[322321497,1712952639678,-500.0,0.00024009,2]
[322321498,1712952639687,-3293.28998897,0.00024009,2]
[322321499,1712952639697,-525.07637197,0.00024009,2]
[322321501,1712952639706,-5787.41581827,0.00024009,2]
[322321502,1712952639716,-495.07509838,0.00024009,2]
[322321503,1712952639725,-500.0,0.00024009,2]
[322321504,1712952639734,-500.0,0.00024009,2]
[322321505,1712952639744,-643.04107435,0.00024009,2]
[322321506,1712952639754,-500.0,0.00024009,2]
[322321507,1712952639763,-605.87666438,0.00024009,2]
[322321508,1712952639772,-500.0,0.00024009,2]
[322321509,1712952639782,-500.0,0.00024009,2]
[322321510,1712952639791,-500.0,0.00024009,2]
[322321511,1712952639800,-500.0,0.00024009,2]
[322321512,1712952639809,-500.0,0.00024009,2]
[322321513,1712952639819,-497.45752565,0.00024009,2]
[322321514,1712952639829,-644.82751322,0.00024009,2]
[322321515,1712952639838,-154.9690062,0.0002401,2]
[322321516,1712952639848,-263.61360044,0.0002401,2]
[322321517,1712952639858,-154.9690062,0.0002401,2]
[322321518,1712952639867,-925.5318754,0.0002401,2]
[322321519,1712952639877,-22761.07715403,0.0002401,2]
[322321520,1712952639886,-157.12422798,0.00024014,2]
[322321521,1712952639895,-313.75026018,0.00024014,2]
[322321522,1712952639905,-584.82871279,0.00024014,2]
[322321523,1712952639914,-1671.38044396,0.00024014,2]
[322321524,1712952639923,-1739.53830863,0.00024014,2]
[322321525,1712952639932,-155.28766795,0.00024023,2]
[322321526,1712952639942,-303.21928897,0.00024023,2]
[322321527,1712952639955,-154.9690062,0.00024023,2]
[322321528,1712952639964,-155.27250746,0.00024031,2]
[322321529,1712952639973,-194.24088925,0.00024031,2]
[322321530,1712952639983,-156.01595975,0.00024031,2]
[322321531,1712952639992,-247.84617447,0.00024031,2]
[322321532,1712952640002,-199.53201924,0.00024031,2]
[322321533,1712952640011,-268.82867148,0.00024031,2]
[322321534,1712952640020,-158.51689641,0.00024031,2]
[322321536,1712952640029,-269.3326566,0.00024031,2]
[322321538,1712952640038,-2617.86637794,0.00024034,2]
[322321540,1712952640047,-154.86062544,0.00024052,2]
[322321541,1712952640057,-245.68583844,0.00024071,2]
[322321542,1712952640148,-201.21352914,0.00024071,2]
[322321543,1712952640164,-218.42945926,0.00024071,2]
[322321544,1712952640173,-276.06676414,0.00024071,2]
[322321545,1712952640183,-244.09537429,0.00024071,2]
[322321547,1712952640193,-155.25769941,0.00024071,2]
[322321549,1712952640205,-408.01951387,0.00024071,2]
[322321551,1712952640214,-1141.56972362,0.00024112,2]
[322321552,1712952640223,-175.980323,0.00024114,2]
[322321554,1712952640232,-380.0,0.00024658,2]
[322321555,1712952640242,-646.07848618,0.00025318,2]
[322321556,1712952640253,-275.24451096,0.000255,2]
[322321557,1712952640263,-15440.55978913,0.000255,2]
[322321559,1712952640272,-222.60146612,0.000255,2]
[322321560,1712952640284,-2673.39972859,0.00025597,2]
[322321561,1712952640293,-1248.21128785,0.00025976,2]
[322321562,1712952640302,-420.0,0.00026032,2]
[322321563,1712952640311,-437.22894082,0.00026074,2]
[322321564,1712952640319,-205.99864379,0.00026174,2]
[322321565,1712952640329,-420.0,0.00026406,2]
[322321566,1712952640337,-1610.18742931,0.00026407,2]
[322321567,1712952640346,-621.30392431,0.00026583,2]
[322321568,1712952640355,-155.04640555,0.00027,2]
[322321569,1712952640367,-2673.39972859,0.00027251,2]
[322321570,1712952640376,-153.41969524,0.00027345,2]
[322321572,1712952640385,-500.0,0.00027397,2]
[322321573,1712952640394,-500.0,0.00027397,2]
[322321574,1712952640404,-500.0,0.00027397,2]
[322321575,1712952640413,-500.0,0.00027397,2]
[322321576,1712952640423,-500.0,0.00027397,2]
[322321577,1712952640433,-500.0,0.00027397,2]
[322321578,1712952640442,-500.0,0.00027397,2]
[322321579,1712952640451,-500.0,0.00027397,2]
[322321580,1712952640460,-500.0,0.00027397,2]
[322321581,1712952640469,-500.0,0.00027397,2]
[322321582,1712952640478,-500.0,0.00027397,2]
[322321583,1712952640487,-500.0,0.00027397,2]
[322321584,1712952640496,-500.0,0.00027397,2]
[322321585,1712952640508,-500.0,0.00027397,2]
[322321586,1712952640517,-500.0,0.00027397,2]
[322321587,1712952640527,-500.0,0.00027397,2]
[322321588,1712952640536,-500.0,0.00027397,2]
[322321589,1712952640545,-500.0,0.00027397,2]
[322321590,1712952640554,-500.0,0.00027397,2]
[322321591,1712952640564,-500.0,0.00027397,2]
[322321592,1712952640574,-500.0,0.00027397,2]
[322321593,1712952640583,-500.0,0.00027397,2]
[322321594,1712952640592,-500.0,0.00027397,2]
[322321595,1712952640601,-500.0,0.00027397,2]
[322321596,1712952640610,-500.0,0.00027397,2]
[322321597,1712952640619,-500.0,0.00027397,2]
[322321598,1712952640629,-500.0,0.00027397,2]
[322321599,1712952640638,-500.0,0.00027397,2]
[322321600,1712952640648,-500.0,0.00027397,2]
[322321601,1712952640657,-500.0,0.00027397,2]
[322321602,1712952640666,-500.0,0.00027397,2]
[322321603,1712952640676,-500.0,0.00027397,2]
[322321604,1712952640685,-500.0,0.00027397,2]
[322321605,1712952640694,-500.0,0.00027397,2]
[322321606,1712952640704,-500.0,0.00027397,2]
[322321607,1712952640713,-500.0,0.00027397,2]
[322321608,1712952640722,-500.0,0.00027397,2]
[322321609,1712952640732,-500.0,0.00027397,2]
[322321610,1712952640741,-500.0,0.00027397,2]
[322321611,1712952640751,-500.0,0.00027397,2]
[322321612,1712952640761,-196.81152055,0.00027397,2]
[322321613,1712952640771,-168.255331,0.00027397,2]
[322321614,1712952640780,-175.679073,0.00027397,2]
[322321615,1712952640790,-329.5547,0.00027397,2]
[322321616,1712952640799,-166.666666,0.00027397,2]
[322321617,1712952640809,-799.89148177,0.000275,17]
[322321618,1712952640819,-620.06519622,0.00027913,2]
[322321619,1712952640828,-291.66058496,0.00028,2]
[322321620,1712952640837,-1248.21128785,0.00028026,3]
[322321621,1712952640847,-166.666666,0.00028038,2]
[322321622,1712952640857,-587.0,0.0002823,2]
[322321623,1712952640866,-798.99830283,0.00028503,2]
[322321624,1712952640876,-166.666666,0.00028679,2]
[322321625,1712952640885,-2673.39972859,0.00028904,2]
[322321626,1712952640894,-841.30748344,0.00029,2]
[322321627,1712952640904,-587.0,0.00029046,2]
[322321628,1712952640913,-620.00325981,0.00029308,2]
[322321629,1712952640923,-166.666666,0.00029321,2]
[322321630,1712952640932,-166.666666,0.00029962,2]
[322321631,1712952640941,-1830.26762363,0.0003,2]
[322321632,1712952640950,-575.30850565,0.0003,2]
[322321633,1712952640959,-300.0,0.0003,2]
[322321634,1712952640968,-154.86062544,0.0003,4]
[322321635,1712952640977,-154.86062544,0.0003,4]
[322321636,1712952640986,-154.9690062,0.0003,4]
[322321637,1712952640995,-1248.21128785,0.00030077,4]
[322321638,1712952641007,-500.0,0.00030136,2]
[322321639,1712952641017,-500.0,0.00030191,2]
[322321640,1712952641026,-500.0,0.00030246,2]
[322321641,1712952641036,-500.0,0.00030301,2]
[322321642,1712952641045,-500.0,0.00030356,2]
[322321643,1712952641054,-500.0,0.0003041,2]
[322321644,1712952641064,-500.0,0.00030465,2]
[322321645,1712952641073,-500.0,0.0003052,2]
[322321646,1712952641086,-2673.39972859,0.00030557,2]
[322321647,1712952641095,-500.0,0.00030575,2]
[322321648,1712952641104,-166.666666,0.00030603,2]
[322321649,1712952641114,-823.0,0.00030614,2]
[322321650,1712952641123,-500.0,0.0003063,2]
[322321651,1712952641132,-1873.05964202,0.00030655,4]
[322321652,1712952641142,-9570.45298558,0.00030656,7]
[322321653,1712952641151,-500.0,0.00030684,2]
[322321654,1712952641160,-500.0,0.00030739,2]
[322321655,1712952641169,-620.00016299,0.00030774,2]
[322321656,1712952641178,-500.0,0.00030794,2]
[322321657,1712952641188,-265.76611257,0.00030848,7]
[322321658,1712952641201,-500.0,0.00030849,2]
[322321659,1712952641211,-500.0,0.00030904,2]
[322321660,1712952641221,-500.0,0.00030958,2]
[322321661,1712952641230,-500.0,0.00031013,2]
[322321662,1712952641239,-500.0,0.00031068,2]
[322321663,1712952641251,-500.0,0.00031123,2]
[322321664,1712952641261,-500.0,0.00031178,2]
[322321665,1712952641271,-166.15881017,0.00031232,2]
[322321666,1712952641280,-1610.18742931,0.00031407,2]
[322321667,1712952641290,-790.81435749,0.00031498,30]
[322321668,1712952641300,-2000.0,0.000315,2]
[322321669,1712952641310,-2000.0,0.0003151,2]
[322321670,1712952641320,-2000.0,0.0003152,2]
[322321671,1712952641330,-2000.0,0.0003153,2]
[322321672,1712952641339,-2000.0,0.0003154,2]
[322321673,1712952641392,-2000.0,0.0003155,2]
[322321674,1712952641402,-2000.0,0.0003156,2]
[322321675,1712952641412,-2000.0,0.0003157,2]
[322321676,1712952641421,-2000.0,0.0003158,2]
[322321677,1712952641431,-2000.0,0.0003159,2]
[322321678,1712952641441,-2000.0,0.000316,2]
[322321679,1712952641451,-2000.0,0.0003161,2]
[322321680,1712952641460,-2316.413616,0.0003162,2]
[322321681,1712952641470,-233.30270751,0.00031825,7]
[322321682,1712952641480,-823.0,0.00031951,2]
[322321683,1712952641490,-190.9330142,0.00032,4]
[322321684,1712952641499,-1211.6365575,0.00032,5]
[322321685,1712952641511,-1248.21128785,0.00032128,5]
[322321686,1712952641521,-150.77086005,0.00032144,2]
[322321687,1712952641532,-620.00000815,0.00032312,2]
[322321688,1712952641542,-3517.28688015,0.00032419,4]
[322321689,1712952641551,-150.0,0.00032519,2]
[322321690,1712952641562,-436.89059976,0.00032877,30]
[322321691,1712952641574,-300.0,0.00033,2]
[322321692,1712952641583,-150.0,0.00033144,2]
[322321693,1712952641593,-329.5547,0.00033165,2]
[322321694,1712952641604,-1152.0,0.00033199,2]
[322321695,1712952641615,-1211.6365575,0.0003392,5]
[322321696,1712952641626,-3483.65573212,0.00034,2]
[322321697,1712952641636,-465.00692251,0.00034,4]
[322321698,1712952641645,-1248.21128785,0.00034179,6]
[322321699,1712952641656,-261761.7589,0.00034437,30]
[322321700,1712952641665,-671.080939,0.00034574,2]
[322321701,1712952641675,-299.76969393,0.000347,2]
[322321702,1712952641684,-651.57439407,0.00034823,30]
[322321703,1712952641694,-1967.24854796,0.00034899,2]
[322321704,1712952641706,-211.17325712,0.00034996,4]
[322321705,1712952641715,-367.64747199,0.00034998,4]
[322321706,1712952641725,-434.77878799,0.00034998,4]
[322321707,1712952641735,-1374.00048686,0.00034998,4]
[322321708,1712952641745,-491.96433176,0.00034998,4]
[322321709,1712952641754,-1385.95734135,0.00034998,4]
[322321710,1712952641764,-348.50398329,0.00034998,4]
[322321711,1712952641773,-1767.90076627,0.00034998,120]
[322321712,1712952641782,-709.0108153,0.00034998,4]
[322321713,1712952641792,-155.39083371,0.00034998,2]
[322321714,1712952641804,-5072.89,0.00034999,2]
[322321715,1712952641814,-5072.89,0.00034999,2]
[322321716,1712952641823,-5072.89,0.00034999,2]
[322321717,1712952641833,-5072.89,0.00034999,2]
[322321718,1712952641842,-5072.89,0.00034999,2]
[322321719,1712952641852,-5072.89,0.00034999,2]
[322321720,1712952641861,-5072.89,0.00034999,2]
[322321721,1712952641871,-5072.89,0.00034999,2]